bitfinex-derivatives/quotes_BTCF0:USTF0_20241208
["timestamp","ask_amount","ask_price","bid_price","bid_amount"]
[1733625527467,0.52242375,100240.0,100230.0,0.26843406]
[1733625527468,0.19422366,100240.0,100230.0,0.26843406]
[1733625527668,0.19422366,100240.0,100230.0,0.03098]
[1733625529472,0.25703659,100240.0,100230.0,0.03098]
[1733625529870,0.01472691,100240.0,100230.0,0.03098]
[1733625530366,0.22413979,100240.0,100230.0,0.03098]
[1733625530574,0.01472691,100240.0,100230.0,8e-05]
[1733625532975,0.01472691,100240.0,100230.0,0.42369293]
[1733625533178,0.01472691,100240.0,100230.0,0.36088]
[1733625533878,0.01472691,100240.0,100230.0,8e-05]
[1733625536975,0.01472691,100240.0,100230.0,0.36088]
[1733625537577,0.01472691,100240.0,100230.0,8e-05]
[1733625540686,0.01472691,100240.0,100220.0,0.99982675]
[1733625540889,0.32903946,100230.0,100220.0,1.28993237]
[1733625541090,0.32951946,100230.0,100220.0,1.28993237]
[1733625541482,0.20989288,100230.0,100220.0,0.46553085]
[1733625541685,0.44880904,100230.0,100220.0,0.46553085]
[1733625542190,0.44880904,100230.0,100220.0,0.46653085]
[1733625542483,0.44880904,100230.0,100220.0,0.46753085]
[1733625543589,0.44880904,100230.0,100220.0,0.46653085]
[1733625543790,0.44880904,100230.0,100220.0,0.46753085]
[1733625549597,0.32951253,100230.0,100220.0,1.29241194]
[1733625549788,0.32951253,100230.0,100220.0,0.93901382]
[1733625549985,0.32951253,100230.0,100220.0,0.70498491]
[1733625550486,0.24276522,100230.0,100220.0,0.63155406]
[1733625550688,0.17995229,100230.0,100220.0,0.69436699]
[1733625550891,0.3295176,100230.0,100220.0,0.69436699]
[1733625551083,0.32951596,100230.0,100220.0,0.69436699]
[1733625556494,0.20989288,100230.0,100220.0,0.45691293]
[1733625557696,0.20989288,100230.0,100220.0,0.09611293]
[1733625557893,0.20989288,100230.0,100220.0,0.45691293]
[1733625559399,0.66300909,100230.0,100220.0,0.002]
[1733625559594,0.78877361,100230.0,100220.0,0.002]
[1733625560102,1.08668558,100230.0,100220.0,0.002]
[1733625560295,0.78877361,100230.0,100220.0,0.002]
[1733625561293,1.15158654,100230.0,100220.0,0.002]
[1733625561495,1.44949851,100230.0,100200.0,0.3708]
[1733625561698,0.56999359,100210.0,100190.0,0.62201523]
[1733625561903,0.56999359,100210.0,100190.0,0.5392023]
[1733625561904,0.32873628,100200.0,100190.0,0.5392023]
[1733625562105,0.32921628,100200.0,100190.0,0.5392023]
[1733625562402,0.32921628,100200.0,100190.0,0.36088167]
[1733625562792,0.1797907,100200.0,100190.0,0.36388167]
[1733625563304,0.32910455,100200.0,100190.0,0.36388167]
[1733625563601,0.33010455,100200.0,100190.0,0.36388167]
[1733625564201,0.33110455,100200.0,100190.0,0.36988167]
[1733625564408,0.1817907,100200.0,100190.0,0.36988167]
[1733625564608,0.12189281,100200.0,100190.0,0.0718946]
[1733625564901,0.39678469,100200.0,100190.0,0.36988167]
[1733625565103,1.11748258,100200.0,100190.0,0.00908167]
[1733625565302,1.03102949,100200.0,100170.0,0.02]
[1733625565605,0.54294301,100180.0,100160.0,0.26113356]
[1733625565796,0.69210561,100180.0,100160.0,0.42361293]
[1733625566001,0.69210561,100180.0,100150.0,0.81937469]
[1733625566002,0.11981008,100170.0,100150.0,0.81937469]
[1733625566204,0.11981008,100170.0,100160.0,0.06281293]
[1733625566409,0.00048,100170.0,100160.0,0.06602934]
[1733625566598,0.00048,100170.0,100160.0,0.42682934]
[1733625566792,0.34630561,100180.0,100160.0,0.42682934]
[1733625566997,0.33130561,100180.0,100160.0,0.42682934]
[1733625567305,0.001,100170.0,100160.0,0.42682934]
[1733625567601,0.001,100170.0,100160.0,0.06602934]
[1733625567806,0.004,100170.0,100160.0,0.06602934]
[1733625568198,0.004,100170.0,100160.0,0.42682934]
[1733625568999,0.004,100170.0,100160.0,0.06602934]
[1733625569493,0.006,100170.0,100160.0,0.06291032]
[1733625569693,0.006,100170.0,100160.0,0.42371032]
[1733625571402,0.01637605,100170.0,100160.0,0.42371032]
[1733625571812,0.01637605,100170.0,100160.0,9.739e-05]
[1733625572607,0.44008245,100170.0,100160.0,9.739e-05]
[1733625572803,0.50488245,100170.0,100160.0,9.739e-05]
[1733625573398,0.56769538,100170.0,100160.0,9.739e-05]
[1733625575302,0.56769538,100170.0,100160.0,3.9e-07]
[1733625575606,0.56769538,100170.0,100140.0,0.02]
[1733625575804,0.42361293,100150.0,100130.0,0.02]
[1733625576009,0.06281293,100140.0,100120.0,0.52941293]
[1733625576195,0.06281293,100140.0,100120.0,0.52253292]
[1733625576400,8e-05,100130.0,100120.0,0.62236819]
[1733625576701,8e-05,100130.0,100120.0,0.62248732]
[1733625577499,0.00108,100130.0,100120.0,0.45983912]
[1733625577706,0.00208,100130.0,100120.0,0.45671913]
[1733625577902,0.00208,100130.0,100120.0,0.51953206]
[1733625578909,0.00208,100130.0,100120.0,0.68222014]
[1733625579305,0.00208,100130.0,100120.0,0.68534014]
[1733625581305,0.00208,100130.0,100120.0,0.6853401]
[1733625581913,0.015,100140.0,100120.0,0.6853401]
[1733625582114,0.02548,100150.0,100130.0,0.42361293]
[1733625582309,0.00048,100150.0,100140.0,0.45621293]
[1733625582511,0.00048,100150.0,100140.0,0.48821293]
[1733625583316,0.00148,100150.0,100140.0,0.48821293]
[1733625583700,0.00148,100150.0,100140.0,0.5541455]
[1733625584312,0.00148,100150.0,100140.0,0.6540007]
[1733625586010,0.00148,100150.0,100140.0,0.65400027]
[1733625586318,0.00148,100150.0,100140.0,0.52837441]
[1733625586710,0.00148,100150.0,100140.0,0.59118734]
[1733625589314,0.00148,100150.0,100140.0,0.59118754]
[1733625590417,0.00148,100150.0,100140.0,0.76950817]
[1733625591214,0.00148,100150.0,100140.0,0.77984296]
[1733625592025,0.00148,100150.0,100140.0,0.39591941]
[1733625592318,0.00148,100150.0,100140.0,0.57424004]
[1733625592919,0.00148,100150.0,100140.0,0.39591941]
[1733625593219,0.00148,100150.0,100140.0,0.21344004]
[1733625593419,0.00148,100150.0,100140.0,0.03511941]
[1733625593627,0.00148,100150.0,100140.0,0.09793234]
[1733625593818,0.00148,100150.0,100140.0,0.27625297]
[1733625594124,0.00148,100150.0,100140.0,0.21344004]
[1733625594718,0.09035196,100150.0,100140.0,0.21344004]
[1733625596322,0.20968204,100150.0,100140.0,0.21344004]
[1733625599720,0.20968204,100150.0,100140.0,0.87450703]
[1733625601131,0.09035196,100150.0,100140.0,0.87450703]
[1733625601325,0.20968204,100150.0,100140.0,0.87450703]
[1733625601624,0.09035196,100150.0,100140.0,1.29485998]
[1733625602221,0.09035196,100150.0,100140.0,1.35767291]
[1733625602414,0.09035196,100150.0,100140.0,1.48862811]
[1733625602826,0.00148,100150.0,100140.0,1.25117415]
[1733625603322,0.00148,100150.0,100140.0,1.60768953]
[1733625605625,0.00148,100150.0,100140.0,1.60457002]
[1733625605929,0.00148,100150.0,100140.0,1.60768942]
[1733625607030,0.00148,100150.0,100140.0,1.54487649]
[1733625609132,0.00148,100150.0,100140.0,1.55495821]
[1733625609332,0.09035196,100150.0,100140.0,1.55495821]
[1733625609728,0.20968204,100150.0,100140.0,1.43631926]
[1733625610034,0.09035196,100150.0,100140.0,1.43631926]
[1733625610237,0.20968204,100150.0,100140.0,1.43631926]
[1733625610426,0.20968204,100150.0,100140.0,1.49913219]
[1733625611817,0.20968204,100150.0,100140.0,1.43631926]
[1733625612023,0.20968204,100150.0,100140.0,1.49913219]
[1733625612221,0.20968204,100150.0,100140.0,1.49921123]
[1733625616729,0.09035196,100150.0,100140.0,1.61777111]
[1733625616930,0.20968204,100150.0,100140.0,1.26125573]
[1733625617231,0.00148,100150.0,100140.0,1.74110979]
[1733625617427,0.00148,100150.0,100140.0,1.35671517]
[1733625617630,0.00148,100150.0,100140.0,1.48012703]
[1733625617828,0.10387196,100160.0,100140.0,2.04134332]
[1733625618036,0.08887196,100160.0,100150.0,1.14045497]
[1733625618338,0.08887196,100160.0,100150.0,1.08865717]
[1733625618633,0.08887196,100160.0,100150.0,1.48648947]
[1733625619031,0.001,100160.0,100150.0,1.60877111]
[1733625619230,0.001,100160.0,100150.0,1.90577909]
[1733625619532,0.22329551,100170.0,100150.0,1.90577849]
[1733625619738,0.20829551,100170.0,100160.0,0.72402313]
[1733625619938,0.20829551,100170.0,100160.0,0.7910419]
[1733625620136,0.08896543,100170.0,100160.0,0.7910419]
[1733625620736,0.08896543,100170.0,100160.0,0.89087717]
[1733625620927,0.08896543,100170.0,100160.0,1.21838515]
[1733625621132,0.08896543,100170.0,100160.0,1.27780948]
[1733625621332,9.347e-05,100170.0,100160.0,1.27780948]
[1733625621833,0.00209347,100170.0,100160.0,1.63143962]
[1733625622342,0.00209347,100170.0,100160.0,1.27469071]
[1733625622731,0.00209347,100170.0,100160.0,1.27336168]
[1733625623533,0.00609347,100170.0,100160.0,1.27336168]
[1733625624241,0.00609347,100170.0,100160.0,1.51058024]
[1733625627445,0.00609347,100170.0,100160.0,1.51056194]
[1733625627642,0.00609347,100170.0,100160.0,1.87136194]
[1733625628845,0.00609347,100170.0,100160.0,1.8818914]
[1733625630646,0.00609347,100170.0,100160.0,1.64915362]
[1733625630844,0.00609347,100170.0,100160.0,2.361783]
[1733625631042,0.00609347,100170.0,100160.0,2.71853191]
[1733625631239,0.015,100180.0,100160.0,3.0697751]
[1733625631541,0.025,100190.0,100170.0,1.01979288]
[1733625631748,0.08887196,100190.0,100180.0,0.58032586]
[1733625632148,0.08887196,100190.0,100180.0,0.68015614]
[1733625632846,0.58580204,100200.0,100180.0,0.68015614]
[1733625633046,0.58580204,100200.0,100190.0,0.42361293]
[1733625633047,0.57080204,100200.0,100190.0,0.42361293]
[1733625633744,0.45147196,100200.0,100190.0,0.42361293]
[1733625634043,0.46047196,100200.0,100190.0,0.42361293]
[1733625634441,0.3716,100200.0,100190.0,0.42361293]
[1733625634947,0.3796,100200.0,100190.0,0.42361293]
[1733625635153,0.46847196,100200.0,100190.0,0.42361293]
[1733625635339,0.3796,100200.0,100190.0,0.42361293]
[1733625636043,0.3706,100200.0,100190.0,0.42361293]
[1733625636243,0.3706,100200.0,100190.0,0.42661293]
[1733625636544,0.3626,100200.0,100190.0,0.42761293]
[1733625645442,0.78621293,100200.0,100190.0,0.004]
[1733625645652,1.02541497,100200.0,100190.0,0.004]
[1733625645850,1.08570561,100200.0,100190.0,0.004]
[1733625646042,0.66209268,100200.0,100190.0,0.42761293]
[1733625646241,0.60242398,100200.0,100190.0,0.42761293]
[1733625646749,0.7220733,100200.0,100190.0,0.42761293]
[1733625648552,0.66213715,100200.0,100190.0,0.42761293]
[1733625650360,0.5427626,100200.0,100190.0,0.42761293]
[1733625652956,0.7220733,100200.0,100190.0,0.42761293]
[1733625654861,0.7220733,100200.0,100190.0,0.84244339]
[1733625654862,0.60265711,100200.0,100190.0,0.84244339]
[1733625657563,0.66222381,100200.0,100190.0,0.84244339]
[1733625657963,0.66222381,100200.0,100190.0,0.77963046]
[1733625658166,0.72503674,100200.0,100190.0,0.18177845]
[1733625658867,0.5427626,100200.0,100190.0,0.18177845]
[1733625659051,1.0828733,100200.0,100190.0,0.18177845]
[1733625660563,0.5427626,100200.0,100190.0,0.48164339]
[1733625660750,0.3936,100200.0,100190.0,0.42761293]
[1733625661364,0.54311318,100200.0,100190.0,0.84348008]
[1733625662865,0.66273013,100200.0,100190.0,0.84348008]
[1733625663366,0.54311318,100200.0,100190.0,0.84348008]
[1733625663965,0.66272996,100200.0,100190.0,0.84348008]
[1733625664373,0.54311318,100200.0,100190.0,0.6652513]
[1733625664665,0.54311318,100200.0,100190.0,0.3044513]
[1733625664866,0.54311318,100200.0,100190.0,0.4826826]
[1733625667072,0.66273029,100200.0,100190.0,0.4826826]
[1733625667275,0.66273029,100200.0,100190.0,0.8434826]
[1733625668162,0.662731,100200.0,100190.0,0.8434826]
[1733625668670,0.54311318,100200.0,100190.0,0.4826826]
[1733625669975,0.57301582,100200.0,100190.0,0.06681293]
[1733625670164,0.3936,100200.0,100190.0,0.06681293]
[1733625671272,0.57303572,100200.0,100190.0,0.06681293]
[1733625671578,0.3936,100200.0,100190.0,0.06681293]
[1733625672567,0.60291845,100200.0,100190.0,0.06681293]
[1733625676977,0.60291845,100200.0,100190.0,0.4826826]
[1733625676978,0.93198147,100200.0,100190.0,0.4826826]
[1733625677273,0.72266302,100200.0,100190.0,0.4826826]
[1733625680975,0.72266302,100200.0,100190.0,0.41986967]
[1733625682578,0.57308892,100200.0,100190.0,0.41986967]
[1733625683869,0.72266488,100200.0,100190.0,0.41986967]
[1733625684075,0.60291845,100200.0,100190.0,0.004]
[1733625685378,0.66573138,100200.0,100190.0,0.004]
[1733625685583,1.3285654,100200.0,100190.0,0.004]
[1733625685784,1.38837068,100200.0,100190.0,0.004]
[1733625685977,1.14914959,100200.0,100190.0,0.004]
[1733625686376,1.38841497,100200.0,100190.0,0.004]
[1733625688982,1.38841497,100200.0,100190.0,0.003]
[1733625689191,1.39241497,100200.0,100190.0,0.003]
[1733625690191,1.39241497,100200.0,100170.0,0.44361293]
[1733625690485,0.32875832,100180.0,100170.0,0.5234183]
[1733625691491,0.32875832,100180.0,100170.0,0.5264183]
[1733625691985,0.38847957,100180.0,100170.0,0.94328797]
[1733625692188,0.20915685,100180.0,100170.0,0.94328797]
[1733625692690,0.20915685,100180.0,100170.0,0.94228797]
[1733625692890,0.20915685,100180.0,100170.0,0.94328797]
[1733625693685,0.20915685,100180.0,100170.0,0.8278696]
[1733625693887,0.08963865,100180.0,100170.0,1.48599806]
[1733625694088,0.17415685,100190.0,100170.0,1.48599806]
[1733625694286,0.15915685,100190.0,100180.0,0.78623263]
[1733625694501,0.03963865,100190.0,100180.0,0.78623263]
[1733625694794,0.15915685,100190.0,100180.0,0.78623263]
[1733625694993,0.03963865,100190.0,100180.0,0.88604797]
[1733625695999,0.04163865,100190.0,100180.0,0.88604797]
[1733625696495,0.04263865,100190.0,100180.0,0.88614654]
[1733625696690,0.04263865,100190.0,100180.0,1.1831945]
[1733625697297,0.04263865,100190.0,100180.0,1.2140945]
[1733625697503,0.04163865,100190.0,100180.0,1.2244569]
[1733625697694,0.04163865,100190.0,100180.0,1.2274569]
[1733625698085,0.03963865,100190.0,100180.0,1.2284569]
[1733625699091,0.1195182,100190.0,100180.0,1.10954729]
[1733625699397,0.2689538,100190.0,100180.0,0.87204195]
[1733625702700,0.2689538,100190.0,100180.0,1.10954729]
[1733625703790,0.2689538,100190.0,100180.0,0.87204195]
[1733625707104,0.79447652,100200.0,100180.0,1.52871657]
[1733625707412,0.6001538,100200.0,100190.0,0.24096549]
[1733625709608,0.6021538,100200.0,100190.0,0.24096549]
[1733625709806,0.6031538,100200.0,100190.0,0.24096549]
[1733625717108,0.6031538,100200.0,100190.0,0.17815256]
[1733625717312,0.6031538,100200.0,100190.0,0.24096549]
[1733625719414,0.6031538,100200.0,100190.0,0.47847083]
[1733625720420,0.5140356,100200.0,100190.0,0.47847083]
[1733625721316,0.69335832,100200.0,100190.0,0.47847083]
[1733625721619,1.14947125,100200.0,100190.0,0.4156579]
[1733625721814,1.21228418,100200.0,100190.0,0.17815256]
[1733625722118,1.21228418,100200.0,100180.0,0.3711624]
[1733625722119,0.82071293,100200.0,100180.0,0.3711624]
[1733625722319,0.22793095,100190.0,100180.0,0.61212789]
[1733625724220,0.22793095,100190.0,100180.0,0.61312789]
[1733625724809,0.22793095,100190.0,100180.0,0.61612789]
[1733625725415,0.22893095,100190.0,100180.0,0.61312789]
[1733625725614,0.18042894,100190.0,100180.0,0.61312789]
[1733625726419,0.18242894,100190.0,100180.0,0.61212789]
[1733625727428,0.15256675,100190.0,100180.0,1.0429615]
[1733625728131,0.15256675,100190.0,100180.0,0.98014857]
[1733625729022,0.33199569,100190.0,100180.0,0.98014857]
[1733625729223,0.12265415,100190.0,100180.0,1.16285184]
[1733625732224,0.12265415,100190.0,100180.0,0.80205184]
[1733625732429,0.12265415,100190.0,100180.0,1.16285184]
[1733625735439,0.12265415,100190.0,100180.0,1.22566477]
[1733625735640,0.12265415,100190.0,100180.0,1.16285184]
[1733625736034,0.12265559,100190.0,100180.0,1.16267321]
[1733625737235,0.18248338,100190.0,100180.0,0.98042603]
[1733625738452,0.15256695,100190.0,100180.0,1.04323896]
[1733625738654,0.33205033,100190.0,100180.0,1.07413896]
[1733625738954,0.15256695,100190.0,100180.0,1.07413896]
[1733625739153,0.33205033,100190.0,100180.0,1.07413896]
[1733625744354,0.12265781,100190.0,100180.0,1.25616043]
[1733625745861,0.12265781,100190.0,100180.0,1.61276187]
[1733625747661,0.12265781,100190.0,100180.0,1.97095508]
[1733625747958,0.12265781,100190.0,100180.0,2.00405508]
[1733625748159,0.12265781,100190.0,100180.0,1.70688721]
[1733625748557,0.003,100190.0,100180.0,1.70688721]
[1733625750150,0.003,100190.0,100180.0,1.76970014]
[1733625750355,0.003,100190.0,100180.0,2.30346958]
[1733625750560,0.003,100190.0,100180.0,2.33838833]
[1733625750766,0.315,100200.0,100180.0,2.33838833]
[1733625750950,0.3,100200.0,100190.0,0.8424892]
[1733625751147,0.3,100200.0,100190.0,1.50147137]
[1733625751554,0.3,100200.0,100190.0,1.60128671]
[1733625751964,0.306,100200.0,100190.0,1.59802579]
[1733625752259,0.42565781,100200.0,100190.0,1.35638195]
[1733625752965,0.42665781,100200.0,100190.0,1.35638195]
[1733625753657,0.42565781,100200.0,100190.0,1.35638195]
[1733625753966,0.42865781,100200.0,100190.0,1.35638195]
[1733625755265,0.42865781,100200.0,100190.0,1.00248195]
[1733625755466,0.309,100200.0,100190.0,1.00559937]
[1733625756252,0.307,100200.0,100190.0,1.00559937]
[1733625756763,0.302,100200.0,100190.0,1.00459937]
[1733625756968,0.302,100200.0,100190.0,1.00470473]
[1733625757770,0.302,100200.0,100190.0,1.00470467]
[1733625758270,0.302,100200.0,100190.0,1.03650215]
[1733625758568,0.302,100200.0,100190.0,1.03961946]
[1733625759370,0.302,100200.0,100190.0,1.6290728]
[1733625760762,0.302,100200.0,100190.0,1.59415792]
[1733625761362,0.302,100200.0,100190.0,1.94805792]
[1733625761965,0.302,100200.0,100190.0,2.2442616]
[1733625762262,0.302,100200.0,100190.0,1.29942717]
[1733625762464,0.302,100200.0,100190.0,2.24402478]
[1733625762658,0.302,100200.0,100190.0,1.9480686]
[1733625762865,0.302,100200.0,100190.0,1.89128134]
[1733625763668,0.302,100200.0,100190.0,1.94827042]
[1733625763856,0.302,100200.0,100190.0,2.24107117]
[1733625764167,0.302,100200.0,100190.0,1.82845726]
[1733625764470,0.366,100200.0,100190.0,1.47455738]
[1733625765264,0.366,100200.0,100190.0,1.11849404]
[1733625765465,0.366,100200.0,100190.0,1.05568111]
[1733625765671,0.366,100200.0,100190.0,1.11849404]
[1733625767472,0.366,100200.0,100190.0,0.94112144]
[1733625768073,0.366,100200.0,100190.0,1.00393437]
[1733625769667,0.366,100200.0,100190.0,1.00081694]
[1733625769872,0.366,100200.0,100190.0,1.00393449]
[1733625770174,0.3341,100200.0,100190.0,1.00393449]
[1733625770574,0.3341,100200.0,100190.0,1.1222291]
[1733625770777,0.3341,100200.0,100190.0,1.00402509]
[1733625771078,0.3341,100200.0,100190.0,1.1222291]
[1733625771575,0.3341,100200.0,100190.0,1.00404474]
[1733625772484,0.3341,100200.0,100190.0,1.1222291]
[1733625773078,0.3341,100200.0,100190.0,0.82630431]
[1733625773277,0.302,100200.0,100190.0,1.1222291]
[1733625773483,0.302,100200.0,100190.0,1.41967878]
[1733625773869,0.302,100200.0,100190.0,1.41967875]
[1733625774480,0.302,100200.0,100190.0,1.59767859]
[1733625776176,0.302,100200.0,100190.0,1.63259374]
[1733625776683,0.302,100200.0,100190.0,1.59767859]
[1733625777489,0.14940524,100230.0,100200.0,0.01]
[1733625777684,0.24326376,100250.0,100220.0,1.56040185]
[1733625777986,0.0329,100240.0,100230.0,0.65726306]
[1733625778177,0.0329,100240.0,100230.0,1.67126841]
[1733625778372,0.0329,100240.0,100230.0,1.67137873]
[1733625778678,0.0329,100240.0,100230.0,1.77114428]
[1733625778874,0.0329,100240.0,100230.0,2.13325159]
[1733625779074,0.0329,100240.0,100230.0,2.25887745]
[1733625779576,0.0329,100240.0,100230.0,1.89677014]
[1733625779776,0.0339,100240.0,100230.0,1.89677014]
[1733625780984,0.0339,100240.0,100230.0,1.90315284]
[1733625781175,0.0349,100240.0,100230.0,1.54739717]
[1733625781873,0.0349,100240.0,100230.0,1.55748612]
[1733625782185,0.0349,100240.0,100230.0,1.79394057]
[1733625782375,0.0349,100240.0,100230.0,1.54754513]
[1733625782575,0.0349,100240.0,100230.0,1.72488489]
[1733625782777,0.0349,100240.0,100230.0,1.73488489]
[1733625783582,0.0349,100240.0,100230.0,1.55754513]
[1733625784285,0.0349,100240.0,100230.0,1.73474134]
[1733625784685,0.0349,100240.0,100230.0,1.7378576]
[1733625786383,0.0349,100240.0,100230.0,1.73474134]
[1733625786589,0.0349,100240.0,100230.0,1.73785764]
[1733625787387,0.0349,100240.0,100230.0,1.50140319]
[1733625789585,0.0349,100240.0,100230.0,1.32420698]
[1733625789789,0.0349,100240.0,100230.0,1.33420698]
[1733625791290,0.0349,100240.0,100230.0,0.98030698]
[1733625791893,0.0349,100240.0,100230.0,1.00065092]
[1733625794890,0.0349,100240.0,100230.0,0.99753462]
[1733625795193,0.0339,100240.0,100230.0,1.01865087]
[1733625795395,0.0329,100240.0,100230.0,1.01965087]
[1733625797485,0.0329,100240.0,100230.0,1.43330153]
[1733625797689,0.0329,100240.0,100230.0,0.71170153]
[1733625797888,0.0329,100240.0,100230.0,1.43330153]
[1733625798098,0.0329,100240.0,100230.0,1.43018528]
[1733625798293,0.0329,100240.0,100230.0,1.43330153]
[1733625798705,0.0644,100250.0,100230.0,1.43330153]
[1733625798900,0.0644,100250.0,100240.0,0.48642586]
[1733625799101,0.0644,100250.0,100240.0,0.52454211]
[1733625799600,0.0644,100250.0,100240.0,0.62430268]
[1733625801587,0.0644,100250.0,100240.0,0.62118643]
[1733625801588,0.0654,100250.0,100240.0,0.62118643]
[1733625801792,0.0654,100250.0,100240.0,0.62928858]
[1733625802100,0.0654,100250.0,100240.0,0.80648479]
[1733625802501,0.0664,100250.0,100240.0,0.80648479]
[1733625804497,0.0664,100250.0,100240.0,1.04293924]
[1733625804899,0.002,100250.0,100240.0,1.04293924]
[1733625805204,0.002,100250.0,100240.0,1.57891902]
[1733625805497,0.002,100250.0,100240.0,1.91177256]
[1733625805705,0.002,100250.0,100240.0,2.03107378]
[1733625806298,0.002,100250.0,100240.0,1.67531811]
[1733625806599,0.002,100250.0,100240.0,2.03107378]
[1733625806790,0.002,100250.0,100240.0,2.38887279]
[1733625807194,0.002,100250.0,100240.0,2.03107378]
[1733625807394,0.002,100250.0,100240.0,2.09274533]
[1733625807999,0.002,100250.0,100240.0,2.09275695]
[1733625808303,0.002,100250.0,100240.0,1.73461072]
[1733625809113,0.002,100250.0,100240.0,1.72650857]
[1733625809408,0.002,100250.0,100240.0,1.73461039]
[1733625809793,0.002,100250.0,100240.0,2.03074586]
[1733625809993,0.001,100250.0,100240.0,1.84330707]
[1733625810308,0.064,100250.0,100240.0,1.58157726]
[1733625810501,0.001,100250.0,100240.0,1.67459019]
[1733625810702,0.14950849,100270.0,100240.0,1.73721039]
[1733625811008,0.14950849,100270.0,100250.0,0.33108233]
[1733625811009,0.095,100260.0,100250.0,0.33108233]
[1733625811301,0.095,100260.0,100250.0,1.06405062]
[1733625811603,0.095,100260.0,100250.0,1.16379626]
[1733625811800,0.095,100260.0,100250.0,1.40062324]
[1733625812302,0.096,100260.0,100250.0,1.40062324]
[1733625812598,0.24537904,100260.0,100250.0,0.73598018]
[1733625812791,0.24537904,100260.0,100250.0,0.74408149]
[1733625813192,0.24537904,100260.0,100250.0,0.56645988]
[1733625813591,0.24637904,100260.0,100250.0,0.56645988]
[1733625813793,0.24637904,100260.0,100250.0,0.74408149]
[1733625813992,0.24637904,100260.0,100250.0,0.80689442]
[1733625814195,0.24637904,100260.0,100250.0,0.68126856]
[1733625814601,0.24637904,100260.0,100250.0,0.80689442]
[1733625815209,0.18655257,100260.0,100250.0,1.0437214]
[1733625815810,0.18655257,100260.0,100250.0,1.03873598]
[1733625816205,0.09155257,100260.0,100250.0,0.801909]
[1733625816511,0.09155257,100260.0,100250.0,1.24439848]
[1733625816803,0.09155257,100260.0,100250.0,1.88941973]
[1733625816998,0.002,100260.0,100250.0,1.88924993]
[1733625818211,0.002,100260.0,100250.0,1.95206286]
[1733625818708,0.002,100260.0,100250.0,1.88924993]
[1733625819601,0.00012945,100270.0,100250.0,1.77229539]
[1733625819795,0.00012945,100270.0,100260.0,1.19963249]
[1733625819995,0.00012945,100270.0,100260.0,1.54159717]
[1733625820410,0.00012945,100270.0,100260.0,1.64133287]
[1733625821304,0.00012945,100270.0,100260.0,1.64143196]
[1733625821505,0.00512945,100270.0,100260.0,1.99633196]
[1733625821809,0.00612945,100270.0,100260.0,2.34745387]
[1733625822011,0.00612945,100270.0,100260.0,2.38234442]
[1733625822214,0.00612945,100270.0,100260.0,1.99633196]
[1733625822512,0.00112945,100270.0,100260.0,2.02576351]
[1733625822701,0.00212945,100270.0,100260.0,2.37653887]
[1733625823096,0.00212945,100270.0,100260.0,2.37155384]
[1733625823300,0.00212945,100270.0,100260.0,2.02576275]
[1733625823501,0.00212945,100270.0,100260.0,1.99087246]
[1733625823703,0.00212945,100270.0,100260.0,1.63611226]
[1733625823908,0.18955257,100300.0,100260.0,2.0901524]
[1733625824113,0.0637,100290.0,100280.0,0.60083862]
[1733625824297,0.0637,100290.0,100280.0,1.00473806]
[1733625824700,0.0637,100290.0,100280.0,1.10445884]
[1733625825107,0.0637,100290.0,100280.0,1.16827177]
[1733625825108,0.0727,100290.0,100280.0,1.16827177]
[1733625825814,0.0777,100290.0,100280.0,1.16927177]
[1733625826510,0.0777,100290.0,100280.0,1.16117233]
[1733625826713,0.16725257,100290.0,100280.0,0.99204579]
[1733625826909,0.16725257,100290.0,100280.0,0.98394664]
[1733625827104,0.16725257,100290.0,100280.0,0.99204578]
[1733625828209,0.0777,100290.0,100280.0,0.99204578]
[1733625828910,0.0777,100290.0,100280.0,1.00033472]
[1733625830116,0.22985677,100290.0,100280.0,0.04509914]
[1733625830311,1.12920532,100290.0,100270.0,0.3539]
[1733625830505,0.36039239,100280.0,100260.0,0.42371202]
[1733625830700,0.12017166,100270.0,100260.0,0.06789905]
[1733625831007,0.18017904,100270.0,100260.0,0.16761485]
[1733625831408,0.18017904,100270.0,100260.0,0.10480192]
[1733625831618,0.18017904,100270.0,100250.0,0.42510884]
[1733625831619,0.24299197,100270.0,100250.0,0.42510884]
[1733625831808,0.08939267,100260.0,100250.0,0.42510884]
[1733625832010,0.08939267,100260.0,100250.0,0.53310868]
[1733625832515,0.14937904,100260.0,100250.0,0.1095679]
[1733625832819,0.14937904,100260.0,100250.0,0.20505854]
[1733625833012,0.14937904,100260.0,100250.0,0.56585854]
[1733625833511,0.18197904,100260.0,100250.0,0.56585854]
[1733625834012,0.18197904,100260.0,100250.0,0.56885854]
[1733625834819,0.12201902,100260.0,100250.0,0.74608423]
[1733625835117,0.12201902,100260.0,100250.0,0.74708423]
[1733625835325,0.12201902,100260.0,100250.0,0.38628423]
[1733625836212,0.12201902,100260.0,100250.0,0.29079359]
[1733625836411,0.12201902,100260.0,100250.0,0.1135679]
[1733625837118,0.12201902,100260.0,100250.0,0.29079359]
[1733625837416,0.12201902,100260.0,100250.0,0.1135679]
[1733625837612,0.48281902,100260.0,100250.0,0.00556806]
[1733625837816,0.60202105,100260.0,100240.0,0.53802569]
[1733625838016,0.0308,100250.0,100240.0,0.53802569]
[1733625838323,0.0308,100250.0,100240.0,0.63777133]
[1733625838713,0.0308,100250.0,100240.0,0.46063963]
[1733625839021,0.0308,100250.0,100240.0,0.46463963]
[1733625839816,0.0308,100250.0,100240.0,0.47277794]
[1733625840320,0.0308,100250.0,100240.0,0.58025498]
[1733625840721,0.0308,100250.0,100240.0,0.75748067]
[1733625840918,0.063,100250.0,100240.0,0.75648067]
[1733625841726,0.063,100250.0,100240.0,0.75149427]
[1733625842016,0.063,100250.0,100240.0,0.57925466]
[1733625842424,0.063,100250.0,100240.0,0.58237101]
[1733625844218,0.063,100250.0,100240.0,0.48688037]
[1733625845913,0.063,100250.0,100240.0,0.58237101]
[1733625847124,0.063,100250.0,100240.0,0.48688037]
[1733625849019,0.72791169,100250.0,100240.0,0.01819642]
[1733625849421,0.57042105,100250.0,100240.0,0.01321034]
[1733625849724,0.57042105,100250.0,100240.0,0.57424343]
[1733625849725,0.001,100250.0,100240.0,0.57424343]
[1733625853728,0.001,100250.0,100240.0,0.75146912]
[1733625853924,0.001,100250.0,100240.0,1.05267005]
[1733625855120,0.001,100250.0,100240.0,1.02077005]
[1733625858227,0.001,100250.0,100240.0,1.43887689]
[1733625859124,0.001,100250.0,100240.0,1.79967689]
[1733625859530,0.001,100250.0,100240.0,1.56337596]
[1733625859732,0.001,100250.0,100240.0,1.91813616]